lending/lending_fUSD_20251111
["ID","MTS","AMOUNT","RATE_DAILY","PERIOD"]
[393623702,1762863042426,-7932.20317444,0.00039509,4]
[393623704,1762863042436,-2500.0,0.00039513,14]
[393623706,1762863042446,-1177.037,0.00039519,55]
[393623707,1762863042456,-157.723,0.00039519,55]
[393623708,1762863042466,-2500.0,0.00039522,14]
[393623709,1762863042475,-375.90278445,0.00039527,2]
[393623710,1762863042485,-200.0,0.00039528,20]
[393623711,1762863042495,-300.0,0.0003953,2]
[393623712,1762863042504,-2500.0,0.00039531,14]
[393623714,1762863042514,-5000.0,0.00039532,30]
[393623715,1762863042524,-200.0,0.00039533,20]
[393623717,1762863042533,-200.0,0.00039537,20]
[393623719,1762863042543,-500.0,0.00039538,120]
[393623720,1762863042553,-7932.20317444,0.00039538,4]
[393623721,1762863042563,-2500.0,0.0003954,14]
[393623722,1762863042572,-171.62032392,0.00039542,13]
[393623723,1762863042582,-200.0,0.00039542,20]
[393623724,1762863042591,-2500.0,0.00039548,14]
[393623725,1762863042601,-1586.73367646,0.00039553,2]
[393623726,1762863042611,-2500.0,0.00039557,14]
[393623727,1762863042621,-150.0,0.00039559,7]
[393623728,1762863042630,-2500.0,0.00039566,14]
[393623729,1762863042640,-2500.0,0.00039575,14]
[393623730,1762863042650,-7932.20317444,0.00039582,4]
[393623731,1762863042662,-543.64087408,0.00039582,2]
[393623732,1762863042672,-2500.0,0.00039584,14]
[393623733,1762863042682,-300.0,0.00039586,2]
[393623734,1762863042692,-7932.20317444,0.0003959,4]
[393623735,1762863042703,-2500.0,0.00039592,14]
[393623736,1762863042713,-300.0,0.00039594,2]
[393623737,1762863042723,-500.0,0.00039598,7]
[393623738,1762863042733,-150.0,0.000396,60]
[393623739,1762863042743,-1300.0,0.000396,14]
[393623740,1762863042753,-18010.06280814,0.000396,30]
[393623742,1762863042762,-2500.0,0.00039601,14]
[393623744,1762863042772,-375.90278445,0.00039601,2]
[393623747,1762863042783,-300.0,0.00039606,2]
[393623750,1762863042792,-2500.0,0.0003961,14]
[393623753,1762863042802,-150.0,0.00039611,7]
[393623756,1762863042811,-433.0,0.00039616,120]
[393623759,1762863042821,-7932.20317444,0.00039618,4]
[393623761,1762863042830,-2500.0,0.00039619,14]
[393623763,1762863042840,-197.79571425,0.00039622,2]
[393623765,1762863042850,-151.0,0.00039622,2]
[393623767,1762863042860,-151.0,0.00039622,2]
[393623769,1762863042870,-2030.6862,0.00039622,2]
[393623771,1762863042881,-2500.0,0.00039628,14]
[393623772,1762863042893,-151.0,0.00039629,14]
[393623773,1762863042904,-31728.8126978,0.0003963,4]
[393623774,1762863042914,-7932.20317444,0.00039631,4]
[393623775,1762863042923,-79322.0317444,0.00039632,4]
[393623776,1762863042933,-2500.0,0.00039636,14]
[393623777,1762863042942,-151.0,0.00039639,14]
[393623778,1762863042951,-580.0728714,0.00039639,2]
[393623779,1762863042960,-75952.84595525,0.0003964,28]
[393623780,1762863042971,-150.0,0.00039641,20]
[393623781,1762863042981,-1008.26056406,0.00039641,30]
[393623782,1762863042991,-15382.5220321,0.00039642,2]
[393623783,1762863043001,-500.0,0.00039642,120]
[393623784,1762863043010,-415.14,0.00039642,120]
[393623785,1762863043020,-534311.2914873,0.00039642,2]
[393623786,1762863043029,-622.7203074,0.00039642,2]
[393623787,1762863043038,-2353.2486455,0.00039642,2]
[393623788,1762863043047,-151.0,0.00039642,30]
[393623789,1762863043056,-250.0,0.00039642,30]
[393623790,1762863043065,-151.0,0.00039642,30]
[393623791,1762863043074,-524.81126104,0.00039642,30]
[393623792,1762863043083,-200.0,0.00039642,30]
[393623793,1762863043092,-414.0,0.00039642,30]
[393623794,1762863043101,-151.0,0.00039642,30]
[393623795,1762863043111,-500.0,0.00039642,30]
[393623796,1762863043120,-250.0,0.00039642,30]
[393623797,1762863043129,-151.0,0.00039642,30]
[393623798,1762863043138,-152.50844048,0.00039642,30]
[393623799,1762863043147,-207.4,0.00039642,30]
[393623800,1762863043156,-429.318,0.00039642,30]
[393623801,1762863043166,-156.587,0.00039642,30]
[393623802,1762863043176,-500.0,0.00039642,30]
[393623803,1762863043185,-250.0,0.00039642,30]
[393623804,1762863043194,-151.0,0.00039642,30]
[393623805,1762863043204,-445.202766,0.00039642,30]
[393623806,1762863043212,-215.0738,0.00039642,30]
[393623807,1762863043221,-162.380719,0.00039642,30]
[393623808,1762863043230,-250.0,0.00039642,30]
[393623809,1762863043240,-151.0,0.00039642,30]
[393623810,1762863043249,-500.0,0.00039642,30]
[393623811,1762863043259,-461.67526834,0.00039642,30]
[393623812,1762863043268,-177.5262,0.00039642,30]
[393623813,1762863043278,-168.3888056,0.00039642,30]
[393623814,1762863043288,-250.0,0.00039642,30]
[393623815,1762863043298,-151.0,0.00039642,30]
[393623816,1762863043308,-500.0,0.00039642,30]
[393623817,1762863043317,-478.75725327,0.00039642,30]
[393623818,1762863043327,-174.61919141,0.00039642,30]
[393623819,1762863043337,-250.0,0.00039642,30]
[393623820,1762863043347,-151.0,0.00039642,30]
[393623821,1762863043357,-496.47127164,0.00039642,30]
[393623822,1762863043367,-500.0,0.00039642,30]
[393623823,1762863043377,-181.08010149,0.00039642,30]
[393623824,1762863043387,-500.0,0.00039642,30]
[393623825,1762863043397,-250.0,0.00039642,30]
[393623826,1762863043407,-151.0,0.00039642,30]
[393623827,1762863043416,-514.84070869,0.00039642,30]
[393623829,1762863043426,-500.0,0.00039642,30]
[393623830,1762863043435,-173.63104048,0.00039642,30]
[393623831,1762863043446,-250.0,0.00039642,30]
[393623832,1762863043456,-500.0,0.00039642,30]
[393623833,1762863043465,-151.0,0.00039642,30]
[393623834,1762863043475,-533.88981491,0.00039642,30]
[393623835,1762863043484,-500.0,0.00039642,30]
[393623836,1762863043497,-250.0,0.00039642,30]
[393623837,1762863043506,-153.91462054,0.00039642,30]
[393623838,1762863043516,-553.64373807,0.00039642,30]
[393623839,1762863043526,-500.0,0.00039642,30]
[393623840,1762863043536,-500.0,0.00039642,30]
[393623841,1762863043547,-250.0,0.00039642,30]
[393623842,1762863043557,-574.12855637,0.00039642,30]
[393623843,1762863043567,-207.31242024,0.00039642,30]
[393623844,1762863043576,-500.0,0.00039642,30]
[393623845,1762863043586,-250.0,0.00039642,30]
[393623846,1762863043595,-160.0,0.00039642,30]
[393623847,1762863043604,-151.0,0.00039642,30]
[393623848,1762863043614,-595.37131296,0.00039642,30]
[393623849,1762863043624,-500.0,0.00039642,30]
[393623850,1762863043633,-250.0,0.00039642,30]
[393623851,1762863043643,-160.0,0.00039642,30]
[393623852,1762863043653,-156.587,0.00039642,30]
[393623853,1762863043663,-617.40005154,0.00039642,30]
[393623854,1762863043673,-500.0,0.00039642,30]
[393623855,1762863043683,-151.0,0.00039642,30]
[393623856,1762863043692,-250.0,0.00039642,30]
[393623857,1762863043703,-160.0,0.00039642,30]
[393623858,1762863043712,-162.380719,0.00039642,30]
[393623859,1762863043722,-640.24385345,0.00039642,30]
[393623860,1762863043732,-500.0,0.00039642,30]
[393623861,1762863043742,-151.0,0.00039642,30]
[393623862,1762863043751,-6888.0,0.00039642,30]
[393623863,1762863043760,-250.0,0.00039642,30]
[393623864,1762863043770,-160.0,0.00039642,30]
[393623865,1762863043779,-168.3888056,0.00039642,30]
[393623866,1762863043788,-663.93287602,0.00039642,30]
[393623867,1762863043798,-500.0,0.00039642,30]
[393623868,1762863043808,-151.0,0.00039642,30]
[393623869,1762863043817,-200.0,0.00039642,30]
[393623870,1762863043826,-160.0,0.00039642,30]
[393623871,1762863043835,-250.0,0.00039642,30]
[393623872,1762863043844,-174.61919141,0.00039642,30]
[393623873,1762863043854,-688.49839244,0.00039642,30]
[393623874,1762863043863,-250.0,0.00039642,30]
[393623875,1762863043872,-500.0,0.00039642,30]
[393623876,1762863043882,-7142.856,0.00039642,30]
[393623877,1762863043894,-151.0,0.00039642,30]
[393623878,1762863043903,-202.58152099,0.00039642,30]
[393623879,1762863043913,-160.0,0.00039642,30]
[393623880,1762863043922,-193.63459898,0.00039642,30]
[393623881,1762863043933,-250.0,0.00039642,30]
[393623882,1762863043943,-713.97283296,0.00039642,30]
[393623883,1762863043953,-250.0,0.00039642,30]
[393623884,1762863043962,-500.0,0.00039642,30]
[393623885,1762863043974,-7407.141672,0.00039642,30]
[393623886,1762863043984,-151.0,0.00039642,30]
[393623887,1762863043994,-176.78201091,0.00039642,30]
[393623888,1762863044003,-500.0,0.00039642,30]
[393623889,1762863044013,-250.0,0.00039642,30]
[393623890,1762863044023,-740.38982778,0.00039642,30]
[393623891,1762863044034,-250.0,0.00039642,30]
[393623892,1762863044043,-500.0,0.00039642,30]
[393623893,1762863044053,-7681.20591386,0.00039642,30]
[393623894,1762863044063,-151.0,0.00039642,30]
[393623895,1762863044075,-500.0,0.00039642,30]
[393623896,1762863044084,-250.0,0.00039642,30]
[393623897,1762863044094,-767.7842514,0.00039642,30]
[393623898,1762863044103,-500.0,0.00039642,30]
[393623899,1762863044113,-7965.41053268,0.00039642,30]
[393623900,1762863044122,-250.0,0.00039642,30]
[393623901,1762863044132,-500.0,0.00039642,30]
[393623902,1762863044143,-151.0,0.00039642,30]
[393623903,1762863044152,-250.0,0.00039642,30]
[393623904,1762863044162,-796.19226871,0.00039642,30]
[393623905,1762863044173,-8260.13072239,0.00039642,30]
[393623906,1762863044183,-250.0,0.00039642,30]
[393623907,1762863044193,-500.0,0.00039642,30]
[393623908,1762863044204,-151.0,0.00039642,30]
[393623909,1762863044213,-250.0,0.00039642,30]
[393623910,1762863044224,-825.65138266,0.00039642,30]
[393623911,1762863044234,-151.0,0.00039642,30]
[393623912,1762863044243,-8565.75555911,0.00039642,30]
[393623913,1762863044253,-250.0,0.00039642,30]
[393623914,1762863044265,-151.0,0.00039642,30]
[393623915,1762863044274,-500.0,0.00039642,30]
[393623916,1762863044285,-250.0,0.00039642,30]
[393623917,1762863044294,-151.0,0.00039642,30]
[393623918,1762863044304,-154.08540463,0.00039642,30]
[393623919,1762863044314,-250.0,0.00039642,30]
[393623920,1762863044323,-500.0,0.00039642,30]
[393623921,1762863044333,-250.0,0.00039642,30]
[393623922,1762863044342,-151.0,0.00039642,30]
[393623923,1762863044352,-151.0,0.00039642,30]
[393623924,1762863044362,-8882.6885148,0.00039642,30]
[393623925,1762863044371,-250.0,0.00039642,30]
[393623926,1762863044381,-500.0,0.00039642,30]
[393623927,1762863044390,-250.0,0.00039642,30]
[393623928,1762863044399,-151.0,0.00039642,30]
[393623929,1762863044409,-250.0,0.00039642,30]
[393623930,1762863044419,-151.0,0.00039642,30]
[393623931,1762863044429,-9211.34798985,0.00039642,30]
[393623932,1762863044438,-250.0,0.00039642,30]
[393623933,1762863044447,-500.0,0.00039642,30]
[393623934,1762863044458,-151.0,0.00039642,30]
[393623935,1762863044468,-250.0,0.00039642,30]
[393623936,1762863044477,-250.0,0.00039642,30]
[393623937,1762863044487,-151.0,0.00039642,30]
[393623938,1762863044497,-9552.16786547,0.00039642,30]
[393623939,1762863044505,-250.0,0.00039642,30]
[393623940,1762863044514,-500.0,0.00039642,30]
[393623941,1762863044524,-220.0,0.00039642,30]
[393623942,1762863044533,-151.0,0.00039642,30]
[393623943,1762863044543,-250.0,0.00039642,30]
[393623944,1762863044552,-600.0,0.00039642,30]
[393623945,1762863044561,-250.0,0.00039642,30]
[393623946,1762863044571,-151.0,0.00039642,30]
[393623947,1762863044580,-9905.5980765,0.00039642,30]
[393623948,1762863044590,-500.0,0.00039642,30]
[393623949,1762863044599,-500.0,0.00039642,30]
[393623950,1762863044609,-220.0,0.00039642,30]
[393623951,1762863044618,-250.0,0.00039642,30]
[393623952,1762863044628,-151.0,0.00039642,30]
[393623953,1762863044637,-600.0,0.00039642,30]
[393623954,1762863044647,-250.0,0.00039642,30]
[393623955,1762863044657,-250.0,0.00039642,30]
[393623956,1762863044666,-151.0,0.00039642,30]
[393623957,1762863044675,-8601.50920716,0.00039642,30]
[393623958,1762863044685,-518.5,0.00039642,30]
[393623959,1762863044694,-200.0,0.00039642,30]
[393623960,1762863044703,-500.0,0.00039642,30]
[393623961,1762863044713,-221.17711777,0.00039642,30]
[393623962,1762863044723,-250.0,0.00039642,30]
[393623963,1762863044732,-151.0,0.00039642,30]
[393623964,1762863044742,-250.0,0.00039642,30]
[393623965,1762863044752,-250.0,0.00039642,30]
[393623966,1762863044762,-151.0,0.00039642,30]
[393623967,1762863044772,-600.0,0.00039642,30]
[393623968,1762863044782,-537.6845,0.00039642,30]
[393623969,1762863044792,-203.17721759,0.00039642,30]
[393623970,1762863044802,-250.0,0.00039642,30]
[393623971,1762863044811,-500.0,0.00039642,30]
[393623972,1762863044821,-151.0,0.00039642,30]
[393623973,1762863044832,-250.0,0.00039642,30]
[393623974,1762863044842,-151.0,0.00039642,30]
[393623975,1762863044852,-673.37345586,0.00039642,30]
[393623976,1762863044862,-557.5788265,0.00039642,30]
[393623977,1762863044872,-250.0,0.00039642,30]
[393623978,1762863044882,-500.0,0.00039642,30]
[393623979,1762863044899,-250.0,0.00039642,30]
[393623980,1762863044909,-152.48973594,0.00039642,30]
[393623981,1762863044919,-151.0,0.00039642,30]
[393623982,1762863044931,-646.51770585,0.00039642,30]
[393623983,1762863044940,-250.0,0.00039642,30]
[393623984,1762863044950,-250.0,0.00039642,30]
[393623985,1762863044964,-500.0,0.00039642,30]
[393623986,1762863044974,-289.5339604,0.00039642,30]
[393623987,1762863044983,-151.0,0.00039642,30]
[393623988,1762863044993,-250.0,0.00039642,30]
[393623989,1762863045003,-250.0,0.00039642,30]
[393623990,1762863045012,-500.0,0.00039642,30]
[393623991,1762863045022,-151.0,0.00039642,30]
[393623992,1762863045031,-250.0,0.00039642,30]
[393623993,1762863045041,-250.0,0.00039642,30]
[393623994,1762863045050,-151.0,0.00039642,30]
[393623995,1762863045061,-500.0,0.00039642,30]
[393623996,1762863045070,-151.0,0.00039642,30]
[393623997,1762863045080,-250.0,0.00039642,30]
[393623998,1762863045090,-250.0,0.00039642,30]
[393623999,1762863045101,-151.0,0.00039642,30]
[393624000,1762863045110,-151.0,0.00039642,30]
[393624001,1762863045120,-500.0,0.00039642,30]
[393624002,1762863045130,-151.0,0.00039642,30]
[393624003,1762863045140,-151.0,0.00039642,30]
[393624004,1762863045149,-250.0,0.00039642,30]
[393624005,1762863045158,-250.0,0.00039642,30]
[393624006,1762863045168,-151.0,0.00039642,30]
[393624007,1762863045178,-591.59799213,0.00039642,30]
[393624008,1762863045187,-151.0,0.00039642,30]
[393624009,1762863045197,-151.0,0.00039642,30]
[393624010,1762863045208,-151.0,0.00039642,30]
[393624011,1762863045218,-250.0,0.00039642,30]
[393624012,1762863045228,-151.0,0.00039642,30]
[393624013,1762863045238,-250.0,0.00039642,30]
[393624014,1762863045248,-151.0,0.00039642,30]
[393624015,1762863045259,-151.0,0.00039642,30]
[393624016,1762863045269,-151.0,0.00039642,30]
[393624017,1762863045279,-151.0,0.00039642,30]
[393624018,1762863045291,-250.0,0.00039642,30]
[393624019,1762863045301,-151.0,0.00039642,30]
[393624020,1762863045311,-151.0,0.00039642,30]
[393624021,1762863045321,-151.0,0.00039642,30]
[393624022,1762863045331,-151.0,0.00039642,30]
[393624023,1762863045341,-250.0,0.00039642,30]
[393624024,1762863045351,-151.0,0.00039642,30]
[393624025,1762863045361,-151.0,0.00039642,30]
[393624027,1762863045500,-151.0,0.00039642,30]
[393624028,1762863045511,-151.0,0.00039642,30]
[393624029,1762863045522,-250.0,0.00039642,30]
[393624030,1762863045531,-151.0,0.00039642,30]
[393624031,1762863045541,-151.0,0.00039642,30]
[393624032,1762863045551,-255.49147654,0.00039642,30]
[393624033,1762863045560,-250.0,0.00039642,30]
[393624034,1762863045568,-151.0,0.00039642,30]
[393624035,1762863045577,-151.0,0.00039642,30]
[393624036,1762863045587,-151.0,0.00039642,30]
[393624037,1762863045596,-250.0,0.00039642,30]
[393624038,1762863045606,-250.0,0.00039642,30]
[393624039,1762863045616,-151.0,0.00039642,30]
[393624040,1762863045626,-250.0,0.00039642,30]
[393624041,1762863045636,-250.0,0.00039642,30]
[393624042,1762863045646,-151.0,0.00039642,30]
[393624043,1762863045655,-250.0,0.00039642,30]
[393624044,1762863045664,-151.0,0.00039642,30]
[393624045,1762863045674,-250.0,0.00039642,30]
[393624046,1762863045683,-151.0,0.00039642,30]
[393624047,1762863045692,-250.0,0.00039642,30]
[393624048,1762863045701,-151.0,0.00039642,30]
[393624049,1762863045711,-250.0,0.00039642,30]
[393624050,1762863045720,-151.0,0.00039642,30]
[393624051,1762863045729,-151.0,0.00039642,30]
[393624052,1762863045739,-250.0,0.00039642,30]
[393624053,1762863045748,-151.0,0.00039642,30]
[393624055,1762863045758,-250.0,0.00039642,30]
[393624056,1762863045767,-151.0,0.00039642,30]
[393624057,1762863045776,-250.0,0.00039642,30]
[393624058,1762863045786,-151.0,0.00039642,30]
[393624059,1762863045795,-250.0,0.00039642,30]
[393624060,1762863045805,-151.0,0.00039642,30]
[393624061,1762863045814,-250.0,0.00039642,30]
[393624062,1762863045823,-151.0,0.00039642,30]
[393624063,1762863045833,-250.0,0.00039642,30]
[393624064,1762863045842,-151.0,0.00039642,30]
[393624065,1762863045852,-250.0,0.00039642,30]
[393624066,1762863045861,-151.0,0.00039642,30]
[393624067,1762863045871,-151.0,0.00039642,30]
[393624068,1762863045880,-250.0,0.00039642,30]
[393624069,1762863045891,-264.48609165,0.00039642,30]
[393624070,1762863045902,-151.0,0.00039642,30]
[393624071,1762863045912,-151.0,0.00039642,30]
[393624072,1762863045922,-250.0,0.00039642,30]
[393624073,1762863045932,-151.0,0.00039642,30]
[393624074,1762863045941,-250.0,0.00039642,30]
[393624075,1762863045950,-151.0,0.00039642,30]
[393624076,1762863045959,-151.0,0.00039642,30]
[393624077,1762863045970,-250.0,0.00039642,30]
[393624078,1762863045979,-151.0,0.00039642,30]
[393624079,1762863045987,-151.0,0.00039642,30]
[393624080,1762863045995,-250.0,0.00039642,30]
[393624081,1762863046003,-151.0,0.00039642,30]
[393624082,1762863046011,-151.0,0.00039642,30]
[393624083,1762863046018,-250.0,0.00039642,30]
[393624084,1762863046026,-151.0,0.00039642,30]
[393624085,1762863046034,-250.0,0.00039642,30]
[393624086,1762863046042,-260.74757872,0.00039642,30]
[393624087,1762863046050,-250.0,0.00039642,30]
[393624088,1762863046058,-250.0,0.00039642,30]
[393624089,1762863046066,-250.0,0.00039642,30]
[393624090,1762863046074,-250.0,0.00039642,30]
[393624091,1762863046082,-250.0,0.00039642,30]
[393624092,1762863046090,-300.0,0.00039642,30]
[393624093,1762863046099,-250.0,0.00039642,30]
[393624094,1762863046107,-311.1,0.00039642,30]
[393624095,1762863046116,-250.0,0.00039642,30]
[393624096,1762863046124,-322.6107,0.00039642,30]
[393624097,1762863046131,-250.0,0.00039642,30]
[393624098,1762863046139,-334.5472959,0.00039642,30]
[393624099,1762863046149,-250.0,0.00039642,30]
[393624100,1762863046160,-346.92554585,0.00039642,30]
[393624101,1762863046171,-250.0,0.00039642,30]
[393624102,1762863046182,-359.76179104,0.00039642,30]
[393624103,1762863046192,-373.07297731,0.00039642,30]
[393624104,1762863046203,-386.87667747,0.00039642,30]
[393624105,1762863046212,-401.19111454,0.00039642,30]
[393624106,1762863046221,-416.03518578,0.00039642,30]
[393624107,1762863046230,-431.42848765,0.00039642,30]
[393624108,1762863046240,-447.3913417,0.00039642,30]
[393624109,1762863046250,-463.94482134,0.00039642,30]
[393624110,1762863046260,-481.11077973,0.00039642,30]
[393624111,1762863046270,-498.91187858,0.00039642,30]
[393624112,1762863046279,-517.37161808,0.00039642,30]
[393624113,1762863046288,-536.51436795,0.00039642,30]
[393624114,1762863046298,-556.36539957,0.00039642,30]
[393624115,1762863046308,-576.95091935,0.00039642,30]
[393624116,1762863046318,-483.77283663,0.00039642,30]
[393624117,1762863046329,-200.0,0.00039642,30]
[393624118,1762863046339,-207.4,0.00039642,30]
[393624119,1762863046349,-215.0738,0.00039642,30]
[393624120,1762863046358,-223.0315306,0.00039642,30]
[393624121,1762863046368,-231.28369723,0.00039642,30]
[393624122,1762863046377,-239.84119403,0.00039642,30]
[393624123,1762863046386,-248.71531821,0.00039642,30]
[393624124,1762863046396,-257.91778498,0.00039642,30]
[393624125,1762863046406,-267.46074303,0.00039642,30]
[393624126,1762863046415,-277.35679052,0.00039642,30]
[393624127,1762863046425,-287.61899177,0.00039642,30]
[393624128,1762863046435,-298.26089446,0.00039642,30]
[393624129,1762863046444,-289.56224679,0.00039642,30]
[393624130,1762863046454,-151.0,0.00039642,120]
[393624131,1762863046464,-151.0,0.00039642,120]
[393624132,1762863046474,-182.491487,0.00039642,120]
[393624133,1762863046483,-158.545571,0.00039642,120]
[393624134,1762863046493,-151.0,0.00039642,120]
[393624135,1762863046502,-151.0,0.00039642,120]
[393624136,1762863046511,-152.959432,0.00039642,120]
[393624138,1762863046520,-151.0,0.00039642,120]
[393624139,1762863046530,-151.0,0.00039642,120]
[393624140,1762863046539,-152.822865,0.00039642,120]
[393624141,1762863046549,-152.895614,0.00039642,120]
[393624142,1762863046558,-151.0,0.00039642,120]
[393624143,1762863046568,-151.0,0.00039642,120]
[393624144,1762863046578,-151.0,0.00039642,120]
[393624145,1762863046587,-151.0,0.00039642,120]
[393624146,1762863046596,-177.507441,0.00039642,15]
[393624147,1762863046606,-151.0,0.00039642,30]
[393624148,1762863046615,-177.507441,0.00039642,15]
[393624149,1762863046625,-180.246269,0.00039642,30]
[393624150,1762863046634,-177.507441,0.00039642,15]
[393624151,1762863046645,-151.0,0.00039642,120]
[393624152,1762863046654,-177.507441,0.00039642,15]
[393624153,1762863046663,-151.0,0.00039642,120]
[393624154,1762863046672,-194.57592,0.00039642,120]
[393624156,1762863046682,-194.57592,0.00039642,120]
[393624157,1762863046692,-255.663913,0.00039642,120]
[393624158,1762863046703,-194.57592,0.00039642,120]
[393624159,1762863046712,-255.663913,0.00039642,120]
[393624160,1762863046721,-194.57592,0.00039642,120]
[393624161,1762863046730,-255.663913,0.00039642,120]
[393624162,1762863046739,-255.663913,0.00039642,120]
[393624163,1762863046749,-171.09974,0.00039642,120]
[393624164,1762863046758,-171.09974,0.00039642,120]
[393624165,1762863046768,-151.0,0.00039642,120]
[393624166,1762863046778,-171.09974,0.00039642,120]
[393624167,1762863046788,-171.09974,0.00039642,120]
[393624168,1762863046797,-260.239907,0.00039642,120]
[393624169,1762863046807,-151.929343,0.00039642,120]
[393624170,1762863046816,-260.239907,0.00039642,120]
[393624171,1762863046825,-260.239907,0.00039642,120]
[393624172,1762863046836,-260.239907,0.00039642,120]
[393624173,1762863046847,-154.676601,0.00039642,120]
[393624174,1762863046857,-151.0,0.00039642,91]
[393624175,1762863046866,-151.0,0.00039642,120]
[393624176,1762863046876,-151.0,0.00039642,120]
[393624177,1762863046886,-151.0,0.00039642,91]
[393624178,1762863046898,-156.596614,0.00039642,120]
[393624179,1762863046907,-151.0,0.00039642,120]
[393624180,1762863046916,-151.0,0.00039642,120]
[393624181,1762863046926,-255.385996,0.00039642,120]
[393624182,1762863046937,-151.0,0.00039642,120]
[393624183,1762863046946,-151.0,0.00039642,120]
[393624184,1762863046957,-151.0,0.00039642,120]
[393624185,1762863046969,-151.0,0.00039642,120]
[393624186,1762863046978,-151.0,0.00039642,120]
[393624187,1762863046987,-151.0,0.00039642,120]
[393624188,1762863046997,-151.0,0.00039642,120]
[393624189,1762863047006,-252.173088,0.00039642,120]
[393624190,1762863047015,-278.365642,0.00039642,120]
[393624191,1762863047024,-152.255212,0.00039642,120]
[393624192,1762863047034,-151.0,0.00039642,120]
[393624193,1762863047053,-153.57712,0.00039642,120]
[393624194,1762863047063,-151.346946,0.00039642,120]
[393624195,1762863047074,-2000.0,0.00039643,2]
[393624196,1762863047086,-2000.0,0.00039643,2]
[393624197,1762863047095,-200.0,0.00039643,2]
[393624198,1762863047104,-200.0,0.00039643,2]
[393624199,1762863047114,-274.84924235,0.00039643,30]
[393624200,1762863047125,-200.0,0.00039643,2]
[393624201,1762863047135,-1242.0,0.00039643,7]
[393624202,1762863047145,-151.0,0.00039643,7]
[393624203,1762863047154,-1242.0,0.00039643,7]
[393624204,1762863047167,-151.0,0.00039643,7]
[393624205,1762863047179,-615.87690974,0.00039643,7]
[393624206,1762863047188,-152.0,0.00039643,7]
[393624207,1762863047198,-1242.0,0.00039643,7]
[393624208,1762863047210,-151.0,0.00039643,7]
[393624209,1762863047220,-845.51027037,0.00039643,7]
[393624210,1762863047229,-1242.0,0.00039643,7]
[393624211,1762863047239,-152.0,0.00039643,7]
[393624212,1762863047249,-151.0,0.00039643,7]
[393624213,1762863047259,-1242.0,0.00039643,7]
[393624214,1762863047269,-152.0,0.00039643,7]
[393624215,1762863047278,-151.0,0.00039643,7]
[393624216,1762863047288,-152.0,0.00039643,7]
[393624217,1762863047298,-1242.0,0.00039643,7]
[393624218,1762863047308,-151.0,0.00039643,7]
[393624219,1762863047318,-1242.0,0.00039643,7]
[393624220,1762863047328,-152.0,0.00039643,7]
[393624221,1762863047338,-152.0,0.00039643,7]
[393624222,1762863047348,-151.0,0.00039643,7]
[393624223,1762863047362,-152.0,0.00039643,7]
[393624224,1762863047372,-152.0,0.00039643,7]
[393624225,1762863047382,-1242.0,0.00039643,7]
[393624226,1762863047393,-151.0,0.00039643,7]
[393624227,1762863047404,-152.0,0.00039643,7]
[393624228,1762863047414,-152.0,0.00039643,7]
[393624229,1762863047428,-151.0,0.00039643,7]